[Event "IM Marmaris Karia IX 2019"]
[Site "Marmaris"]
[Date "2019.08.24"]
[Round "3.1"]
[White "Tanriverdi, Enes"]
[Black "Papenin, Nikolai"]
[Result "1-0"]
[ECO "E73"]
[WhiteElo "2355"]
[BlackElo "2319"]
[Annotator "ChessBase"]
[PlyCount "49"]
[EventDate "2019.08.24"]
[EventType "schev"]
[EventCountry "TUR"]
[SourceTitle "playchess.com"]
[Source "ChessBase"]
[SourceQuality "1"]
[TimeControl "5400+30"]

1. d4 {[%emt 0:17:30]} Nf6 {[%emt 0:00:30]} 2. c4 {[%emt 0:00:30]} c5 {[%emt 0:00:00]} 3. d5 {[%emt 0:00:00]} e5 {[%emt 0:00:00]} 4. Nc3 {[%emt 0:01:00]} d6 {[%emt 0:00:30]} 5. e4 {[%emt 0:00:30]} g6 {[%emt 0:00:30]} 6. Be2 {[%emt 0:03:30]} Bg7 {[%emt 0:00:00]} 7. h4 {[%emt 0:02:30]} O-O {[%emt 0:04:00]} 8. h5 {[%emt 0:04:30]} Nbd7 {[%emt 0:00:30]} 9. hxg6 {[%emt 0:08:30]} hxg6 {[%emt 0:00:30]} 10. Bg5 {[%emt 0:00:00]} b5 {[%emt 0:01:30]} 11. cxb5 {[%emt 0:07:00]} a6 {[%emt 0:00:30]} 12. Nf3 {[%emt 0:00:30]} axb5 {[%emt 0:00:30]} 13. Bxb5 {[%emt 0:00:30]} Qa5 {[%emt 0:00:30]} 14. Nd2 {[%emt 0:00:30]} Ba6 {[%emt 0:00:30]} 15. Nc4 {[%emt 0:03:30]} Qc7 {[%emt 0:04:30]} 16. Bxa6 {[%emt 0:00:30]} Rxa6 {[%emt 0:00:00]} 17. Qf3 {[%emt 0:02:30]} Rb8 {[%emt 0:00:00]} 18. Rc1 {[%emt 0:09:30]} Nh5 {[%emt 0:02:30]} 19. b3 {[%emt 0:01:30]} Rb4 {[%emt 0:01:30]} 20. a4 {[%emt 0:02:30]} Rb7 {[%emt 0:06:30]} 21. Nb5 {[%emt 0:00:30]} Qb8 {[%emt 0:00:30]} 22. g3 {[%emt 0:02:30]} Ndf6 {[%emt 0:00:30]} 23. Kf1 {[%emt 0:00:30]} Qd8 {[%emt 0:02:30]} 24. Rxh5 {[%emt 0:02:30]} gxh5 {[%emt 0:00:00]} 25. Kg2 {[%emt 0:00:00]} 1-0

[Event "IM Marmaris Karia IX 2019"]
[Site "Marmaris"]
[Date "2019.08.24"]
[Round "3.2"]
[White "Karaoglan, Doruk"]
[Black "Guseynov, Alihan"]
[Result "1/2-1/2"]
[ECO "B25"]
[WhiteElo "2246"]
[BlackElo "2314"]
[Annotator "ChessBase"]
[PlyCount "67"]
[EventDate "2019.08.24"]
[EventType "schev"]
[EventCountry "TUR"]
[SourceTitle "playchess.com"]
[Source "ChessBase"]
[SourceQuality "1"]
[TimeControl "5400+30"]

1. e4 {[%emt 0:00:30]} c5 {[%emt 0:01:30]} 2. Nc3 {[%emt 0:00:00]} Nc6 {[%emt 0:00:30]} 3. g3 {[%emt 0:00:00]} g6 {[%emt 0:00:30]} 4. Bg2 {[%emt 0:00:00]} Bg7 {[%emt 0:00:00]} 5. d3 {[%emt 0:00:00]} d6 {[%emt 0:00:00]} 6. f4 {[%emt 0:00:00]} e6 {[%emt 0:00:30]} 7. Nf3 {[%emt 0:00:00]} Nge7 {[%emt 0:00:30]} 8. O-O {[%emt 0:00:30]} O-O {[%emt 0:00:30]} 9. Be3 {[%emt 0:00:30]} b6 {[%emt 0:00:30]} 10. Bf2 {[%emt 0:00:30]} Qd7 {[%emt 0:00:30]} 11. Qd2 {[%emt 0:01:30]} Bb7 {[%emt 0:05:30]} 12. Rae1 {[%emt 0:02:30]} Rae8 {[%emt 0:13:30]} 13. Nd1 {[%emt 0:10:30]} f5 {[%emt 0:05:30]} 14. exf5 {[%emt 0:11:30]} gxf5 {[%emt 0:09:30]} 15. d4 {[%emt 0:14:30]} Nxd4 {[%emt 0:19:30]} 16. Nxd4 {[%emt 0:00:30]} Bxg2 {[%emt 0:00:30]} 17. Kxg2 {[%emt 0:07:30]} cxd4 {[%emt 0:00:00]} 18. Bxd4 {[%emt 0:00:30]} e5 {[%emt 0:02:00]} 19. Be3 {[%emt 0:05:30]} Qc6+ {[%emt 0:03:30]} 20. Kg1 {[%emt 0:00:30]} Nd5 {[%emt 0:01:30]} 21. c3 {[%emt 0:04:30]} Re6 {[%emt 0:07:30]} 22. Qg2 {[%emt 0:05:30]} Qc4 {[%emt 0:09:39]} 23. b3 {[%emt 0:07:30]} Qd3 {[%emt 0:02:36]} 24. Qd2 {[%emt 0:07:59]} e4 {[%emt 0:01:47]} 25. Qxd3 {[%emt 0:02:12]} exd3 {[%emt 0:00:02]} 26. Bd2 {[%emt 0:00:05]} Re2 {[%emt 0:08:06]} 27. Rf2 {[%emt 0:00:14]} Rxe1+ {[%emt 0:03:33]} 28. Bxe1 {[%emt 0:00:05]} Rc8 {[%emt 0:00:10]} 29. Rf3 {[%emt 0:02:15]} Nxc3 {[%emt 0:00:50]} 30. Bxc3 {[%emt 0:01:29]} Bxc3 {[%emt 0:00:03]} 31. Rxd3 {[%emt 0:00:01]} Bb4 {[%emt 0:00:54]} 32. Ne3 {[%emt 0:00:34]} Bc5 {[%emt 0:01:05]} 33. Kf2 {[%emt 0:01:17]} Kf7 {[%emt 0:00:48]} 34. Kf3 1/2-1/2

[Event "IM Marmaris Karia IX 2019"]
[Site "Marmaris"]
[Date "2019.08.24"]
[Round "3.3"]
[White "Kizilkus, Akin"]
[Black "Datuashvili, Nona"]
[Result "1-0"]
[ECO "A84"]
[WhiteElo "2135"]
[BlackElo "2083"]
[Annotator "ChessBase"]
[PlyCount "46"]
[EventDate "2019.08.24"]
[EventType "schev"]
[EventCountry "TUR"]
[SourceTitle "playchess.com"]
[Source "ChessBase"]
[SourceQuality "1"]
[TimeControl "5400+30"]

1. d4 {[%emt 0:00:30]} d5 {[%emt 0:08:30]} 2. c4 {[%emt 0:00:00]} e6 {[%emt 0:00:30]} 3. Nc3 {[%emt 0:00:00]} c6 {[%emt 0:02:30]} 4. e3 {[%emt 0:00:30]} f5 {[%emt 0:00:30]} 5. Bd3 {[%emt 0:00:00]} Nf6 {[%emt 0:00:30]} 6. Nge2 {[%emt 0:00:00]} Bd6 {[%emt 0:00:30]} 7. Qc2 {[%emt 0:00:30]} Ne4 {[%emt 0:01:30]} 8. O-O {[%emt 0:02:30]} Qh4 {[%emt 0:08:30]} 9. g3 {[%emt 0:04:30]} Qh3 {[%emt 0:01:30]} 10. f3 {[%emt 0:08:30]} Nf6 {[%emt 0:00:30]} 11. e4 {[%emt 0:06:30]} e5 {[%emt 0:22:30]} 12. cxd5 {[%emt 0:28:30]} O-O {[%emt 0:08:30]} 13. exf5 {[%emt 0:02:30]} exd4 {[%emt 0:07:30]} 14. Ne4 {[%emt 0:03:30]} Nxe4 {[%emt 0:01:30]} 15. fxe4 {[%emt 0:00:30]} cxd5 {[%emt 0:01:30]} 16. Qb3 {[%emt 0:01:30]} Kh8 {[%emt 0:13:18]} 17. Qxd5 {[%emt 0:00:30]} Bc7 {[%emt 0:04:05]} 18. Bf4 {[%emt 0:00:30]} Rd8 {[%emt 0:02:10]} 19. Qf7 {[%emt 0:02:30]} Bxf4 {[%emt 0:02:07]} 20. Nxf4 {[%emt 0:04:30]} Qh6 {[%emt 0:00:55]} 21. e5 {[%emt 0:00:30]} Nc6 {[%emt 0:00:52]} 22. Rae1 {[%emt 0:00:30]} Bd7 {[%emt 0:00:54]} 23. e6 {[%emt 0:00:30]} Be8 {[%emt 0:00:03]} 1-0

[Event "IM Marmaris Karia IX 2019"]
[Site "Marmaris"]
[Date "2019.08.24"]
[Round "3.4"]
[White "Oney, Feridun"]
[Black "Benidze, Davit"]
[Result "0-1"]
[ECO "B06"]
[WhiteElo "2054"]
[BlackElo "2440"]
[Annotator "ChessBase"]
[PlyCount "117"]
[EventDate "2019.08.24"]
[EventType "schev"]
[EventCountry "TUR"]
[SourceTitle "playchess.com"]
[Source "ChessBase"]
[SourceQuality "1"]
[TimeControl "5400+30"]

1. Nf3 {[%emt 0:00:30]} g6 {[%emt 0:19:30]} 2. d4 {[%emt 0:03:30]} Bg7 {[%emt 0:00:30]} 3. e4 {[%emt 0:03:30]} c6 {[%emt 0:00:00]} 4. h3 {[%emt 0:04:30]} d5 {[%emt 0:00:00]} 5. exd5 {[%emt 0:01:30]} cxd5 {[%emt 0:00:30]} 6. c3 {[%emt 0:00:30]} Nh6 {[%emt 0:00:30]} 7. Bf4 {[%emt 0:00:30]} O-O {[%emt 0:01:30]} 8. Be2 {[%emt 0:00:30]} f6 {[%emt 0:00:30]} 9. O-O {[%emt 0:02:30]} Nf7 {[%emt 0:00:30]} 10. Bg3 {[%emt 0:01:30]} e5 {[%emt 0:07:30]} 11. dxe5 {[%emt 0:00:30]} fxe5 {[%emt 0:00:00]} 12. Qb3 {[%emt 0:04:30]} b6 {[%emt 0:04:00]} 13. a4 {[%emt 0:01:30]} Nc6 {[%emt 0:04:30]} 14. Bb5 {[%emt 0:07:30]} Na5 {[%emt 0:02:30]} 15. Qa2 {[%emt 0:04:30]} a6 {[%emt 0:00:00]} 16. Be2 {[%emt 0:00:30]} Nc6 {[%emt 0:03:00]} 17. Rd1 {[%emt 0:02:30]} Be6 {[%emt 0:06:30]} 18. Nbd2 {[%emt 0:03:30]} Qf6 {[%emt 0:03:30]} 19. Nf1 {[%emt 0:10:30]} Kh8 {[%emt 0:12:30]} 20. Qb3 {[%emt 0:21:30]} e4 {[%emt 0:00:30]} 21. Nd4 {[%emt 0:00:30]} Nxd4 {[%emt 0:00:30]} 22. cxd4 {[%emt 0:00:30]} h5 {[%emt 0:00:30]} 23. Ne3 {[%emt 0:07:05]} h4 {[%emt 0:00:30]} 24. Bh2 {[%emt 0:01:29]} Nh6 {[%emt 0:03:30]} 25. Rf1 {[%emt 0:00:35]} Qxd4 {[%emt 0:00:30]} 26. Rad1 {[%emt 0:02:29]} Qf6 {[%emt 0:00:30]} 27. Qxb6 {[%emt 0:05:41]} d4 {[%emt 0:00:30]} 28. Ng4 {[%emt 0:00:10]} Nxg4 {[%emt 0:00:30]} 29. Bxg4 {[%emt 0:00:14]} Bxg4 {[%emt 0:00:30]} 30. Qxf6 {[%emt 0:00:09]} Bxf6 {[%emt 0:00:00]} 31. hxg4 {[%emt 0:00:07]} d3 {[%emt 0:06:00]} 32. b4 {[%emt 0:01:43]} Bd4 {[%emt 0:00:30]} 33. Bd6 {[%emt 0:00:57]} Rfe8 {[%emt 0:03:30]} 34. Bc5 {[%emt 0:01:42]} Rad8 {[%emt 0:00:30]} 35. Rfe1 {[%emt 0:00:55]} Kg7 {[%emt 0:01:30]} 36. Bxd4+ {[%emt 0:01:55]} Rxd4 {[%emt 0:00:30]} 37. b5 {[%emt 0:00:27]} a5 {[%emt 0:02:40]} 38. Re3 {[%emt 0:02:45]} Rc8 {[%emt 0:02:48]} 39. f3 {[%emt 0:00:40]} d2 {[%emt 0:00:45]} 40. Kf1 {[%emt 0:00:11]} exf3 {[%emt 0:00:03]} 41. Rxf3 {[%emt 0:01:08]} Rcd8 {[%emt 0:01:19]} 42. Rb3 {[%emt 0:01:34]} Rxa4 {[%emt 0:00:45]} 43. Rb2 {[%emt 0:00:28]} Rf4+ {[%emt 0:00:27]} 44. Kg1 {[%emt 0:00:39]} Rb4 {[%emt 0:04:09]} 45. Rbxd2 {[%emt 0:00:30]} Rxd2 {[%emt 0:00:30]} 46. Rxd2 {[%emt 0:00:30]} Rxb5 {[%emt 0:00:00]} 47. Rd6 {[%emt 0:00:10]} g5 {[%emt 0:00:00]} 48. Ra6 {[%emt 0:00:19]} Kf7 {[%emt 0:00:00]} 49. g3 {[%emt 0:00:48]} hxg3 {[%emt 0:00:08]} 50. Kg2 {[%emt 0:00:36]} Ke7 {[%emt 0:00:02]} 51. Kxg3 {[%emt 0:00:00]} Kd7 {[%emt 0:00:06]} 52. Rf6 {[%emt 0:00:25]} Kc7 {[%emt 0:00:17]} 53. Kf2 {[%emt 0:00:23]} Kb7 {[%emt 0:00:06]} 54. Ke2 {[%emt 0:00:41]} a4 {[%emt 0:00:11]} 55. Kd2 {[%emt 0:01:41]} Ra5 {[%emt 0:01:01]} 56. Kc2 {[%emt 0:00:12]} Rc5+ {[%emt 0:02:10]} 57. Kb2 {[%emt 0:01:30]} Rc4 {[%emt 0:00:04]} 58. Ka3 {[%emt 0:00:41]} Rxg4 {[%emt 0:00:06]} 59. Rd6 {[%emt 0:01:01]} 0-1

[Event "IM Marmaris Karia IX 2019"]
[Site "Marmaris"]
[Date "2019.08.24"]
[Round "3.5"]
[White "Kirilmaz, Emre"]
[Black "Annageldyev, Orazly"]
[Result "0-1"]
[ECO "D00"]
[WhiteElo "2044"]
[BlackElo "2342"]
[Annotator "ChessBase"]
[PlyCount "142"]
[EventDate "2019.08.24"]
[EventType "schev"]
[EventCountry "TUR"]
[SourceTitle "playchess.com"]
[Source "ChessBase"]
[SourceQuality "1"]
[TimeControl "5400+30"]

1. d4 {[%emt 0:01:30]} d5 {[%emt 0:00:30]} 2. c3 {[%emt 0:00:30]} Bf5 {[%emt 0:00:30]} 3. Qb3 {[%emt 0:00:30]} b6 {[%emt 0:00:30]} 4. Bg5 {[%emt 0:01:30]} h6 {[%emt 0:01:30]} 5. Bh4 {[%emt 0:00:00]} Nf6 {[%emt 0:00:30]} 6. Nf3 {[%emt 0:00:00]} e6 {[%emt 0:00:30]} 7. Nbd2 {[%emt 0:02:30]} Be7 {[%emt 0:06:30]} 8. Ne5 {[%emt 0:01:30]} O-O {[%emt 0:00:30]} 9. e3 {[%emt 0:00:30]} Ne4 {[%emt 0:05:30]} 10. Bxe7 {[%emt 0:00:30]} Qxe7 {[%emt 0:00:00]} 11. Nxe4 {[%emt 0:00:30]} Bxe4 {[%emt 0:00:00]} 12. Bd3 {[%emt 0:05:30]} Bxd3 {[%emt 0:04:30]} 13. Nxd3 {[%emt 0:00:00]} c5 {[%emt 0:00:30]} 14. Nf4 {[%emt 0:00:00]} Nd7 {[%emt 0:13:30]} 15. O-O {[%emt 0:00:30]} Rfd8 {[%emt 0:01:30]} 16. Rae1 {[%emt 0:07:30]} Nf6 {[%emt 0:00:30]} 17. Qd1 {[%emt 0:00:30]} Rac8 {[%emt 0:03:30]} 18. Nd3 {[%emt 0:00:30]} c4 {[%emt 0:02:30]} 19. Ne5 {[%emt 0:00:00]} b5 {[%emt 0:00:00]} 20. a3 {[%emt 0:01:00]} a5 {[%emt 0:00:00]} 21. g4 {[%emt 0:12:30]} b4 {[%emt 0:02:30]} 22. axb4 {[%emt 0:03:30]} axb4 {[%emt 0:00:30]} 23. f4 {[%emt 0:01:30]} bxc3 {[%emt 0:01:30]} 24. g5 {[%emt 0:02:30]} cxb2 {[%emt 0:04:30]} 25. gxf6 {[%emt 0:01:30]} Qxf6 {[%emt 0:00:30]} 26. Qc2 {[%emt 0:05:30]} c3 {[%emt 0:01:30]} 27. f5 {[%emt 0:01:30]} Rc7 {[%emt 0:04:30]} 28. Nd3 {[%emt 0:06:30]} Rb8 {[%emt 0:11:30]} 29. Nc5 {[%emt 0:02:30]} exf5 {[%emt 0:08:30]} 30. Qxc3 {[%emt 0:03:30]} Qg6+ {[%emt 0:03:30]} 31. Kh1 {[%emt 0:01:30]} f4 {[%emt 0:00:30]} 32. Qd3 {[%emt 0:00:30]} Qxd3 {[%emt 0:00:30]} 33. Nxd3 {[%emt 0:00:30]} fxe3 {[%emt 0:00:30]} 34. Rb1 {[%emt 0:03:30]} Rc2 {[%emt 0:00:30]} 35. Rfe1 {[%emt 0:01:30]} g5 {[%emt 0:12:15]} 36. Ne5 {[%emt 0:06:30]} f5 {[%emt 0:01:45]} 37. h4 {[%emt 0:05:30]} Kg7 {[%emt 0:03:45]} 38. Rg1 {[%emt 0:01:30]} g4 {[%emt 0:00:11]} 39. Nd3 {[%emt 0:00:30]} Rd2 {[%emt 0:00:56]} 40. Nf4 {[%emt 0:00:00]} Rb5 {[%emt 0:01:44]} 41. Rge1 {[%emt 0:05:07]} Rc2 {[%emt 0:01:43]} 42. Ng2 {[%emt 0:00:33]} e2 {[%emt 0:02:09]} 43. Ne3 {[%emt 0:01:11]} Rd2 {[%emt 0:00:18]} 44. Nxf5+ {[%emt 0:00:18]} Kg6 {[%emt 0:00:13]} 45. Ne3 {[%emt 0:00:33]} Rb3 {[%emt 0:00:46]} 46. Nxd5 {[%emt 0:08:13]} Rd1 {[%emt 0:02:18]} 47. Nf4+ {[%emt 0:00:44]} Kf5 {[%emt 0:00:06]} 48. Ng2 {[%emt 0:00:16]} g3 {[%emt 0:00:07]} 49. Kg1 {[%emt 0:01:06]} Kg4 {[%emt 0:01:21]} 50. d5 {[%emt 0:00:13]} Kf3 {[%emt 0:00:37]} 51. h5 {[%emt 0:01:01]} Rxd5 {[%emt 0:00:41]} 52. Nh4+ {[%emt 0:01:11]} Ke3 {[%emt 0:00:05]} 53. Ng2+ {[%emt 0:00:11]} Kd2 {[%emt 0:00:09]} 54. Nf4 {[%emt 0:00:58]} Re5 {[%emt 0:00:06]} 55. Kg2 {[%emt 0:01:24]} Re4 {[%emt 0:00:05]} 56. Nd5 {[%emt 0:00:53]} Rc4 {[%emt 0:00:28]} 57. Nf6 {[%emt 0:00:53]} Rc1 {[%emt 0:01:02]} 58. Ne4+ {[%emt 0:00:14]} Kc2 {[%emt 0:00:29]} 59. Rxb2+ {[%emt 0:00:18]} Kxb2 {[%emt 0:00:23]} 60. Rxe2+ {[%emt 0:00:12]} Rc2 {[%emt 0:00:20]} 61. Rxc2+ {[%emt 0:00:11]} Kxc2 {[%emt 0:00:05]} 62. Nxg3 {[%emt 0:00:17]} Rb5 {[%emt 0:00:37]} 63. Kf3 {[%emt 0:01:28]} Kd3 {[%emt 0:00:04]} 64. Kf4 {[%emt 0:01:14]} Rg5 {[%emt 0:00:17]} 65. Kf3 {[%emt 0:02:01]} Kd4 {[%emt 0:00:26]} 66. Kf4 {[%emt 0:00:05]} Kd5 {[%emt 0:00:37]} 67. Ne4 {[%emt 0:00:22]} Re5 {[%emt 0:01:47]} 68. Nf6+ {[%emt 0:01:12]} Ke6 {[%emt 0:00:11]} 69. Ne8 {[%emt 0:00:16]} Rf5+ {[%emt 0:00:55]} 70. Kg4 {[%emt 0:02:02]} Rf7 {[%emt 0:00:07]} 71. Kh4 {[%emt 0:00:20]} Re7 {[%emt 0:00:11]} 0-1

[Event "IM Marmaris Karia IX 2019"]
[Site "Marmaris"]
[Date "2019.08.24"]
[Round "4.1"]
[White "Guseynov, Alihan"]
[Black "Tanriverdi, Enes"]
[Result "1/2-1/2"]
[ECO "E18"]
[WhiteElo "2314"]
[BlackElo "2355"]
[Annotator "ChessBase"]
[PlyCount "52"]
[EventDate "2019.08.24"]
[EventType "schev"]
[EventCountry "TUR"]
[SourceTitle "playchess.com"]
[Source "ChessBase"]
[SourceQuality "1"]
[TimeControl "5400+30"]

1. d4 {[%emt 0:00:30]} Nf6 {[%emt 0:00:30]} 2. Nf3 {[%emt 0:00:30]} e6 {[%emt 0:00:30]} 3. g3 {[%emt 0:00:00]} b6 {[%emt 0:00:30]} 4. Bg2 {[%emt 0:00:00]} Bb7 {[%emt 0:00:30]} 5. O-O {[%emt 0:00:30]} Be7 {[%emt 0:00:00]} 6. c4 {[%emt 0:00:00]} O-O {[%emt 0:00:00]} 7. Nc3 {[%emt 0:01:00]} Ne4 {[%emt 0:00:00]} 8. Nxe4 {[%emt 0:00:30]} Bxe4 {[%emt 0:00:00]} 9. Ne1 {[%emt 0:00:00]} Bxg2 {[%emt 0:01:30]} 10. Nxg2 {[%emt 0:00:00]} d5 {[%emt 0:00:00]} 11. Qc2 {[%emt 0:01:30]} Nc6 {[%emt 0:04:00]} 12. Rd1 {[%emt 0:00:30]} Nb4 {[%emt 0:05:30]} 13. Qb3 {[%emt 0:02:30]} dxc4 {[%emt 0:00:30]} 14. Qxc4 {[%emt 0:00:00]} c5 {[%emt 0:00:00]} 15. Be3 {[%emt 0:09:00]} Qd5 {[%emt 0:00:00]} 16. Qxd5 {[%emt 0:00:30]} Nxd5 {[%emt 0:00:30]} 17. dxc5 {[%emt 0:01:30]} Nxe3 {[%emt 0:00:30]} 18. Nxe3 {[%emt 0:00:00]} Bxc5 {[%emt 0:00:00]} 19. Rd7 {[%emt 0:02:00]} f5 {[%emt 0:05:00]} 20. Rad1 {[%emt 0:00:30]} Rf7 {[%emt 0:03:30]} 21. Rd8+ {[%emt 0:00:30]} Rxd8 {[%emt 0:00:30]} 22. Rxd8+ {[%emt 0:00:30]} Rf8 {[%emt 0:00:30]} 23. Rd7 {[%emt 0:00:30]} Rf7 {[%emt 0:00:30]} 24. Rd8+ {[%emt 0:00:00]} Rf8 {[%emt 0:00:00]} 25. Rd7 {[%emt 0:00:00]} Rf7 {[%emt 0:00:00]} 26. Rd8+ {[%emt 0:00:30]} Bf8 {[%emt 0:00:30]} 1/2-1/2

[Event "IM Marmaris Karia IX 2019"]
[Site "Marmaris"]
[Date "2019.08.24"]
[Round "4.2"]
[White "Datuashvili, Nona"]
[Black "Karaoglan, Doruk"]
[Result "0-1"]
[ECO "B22"]
[WhiteElo "2083"]
[BlackElo "2246"]
[Annotator "NA"]
[PlyCount "58"]
[EventDate "2019.08.24"]
[EventType "schev"]
[EventCountry "TUR"]
[SourceTitle "playchess.com"]
[Source "ChessBase"]
[SourceQuality "1"]
[TimeControl "5400+30"]

1. e4 {[%emt 0:05:30]} c5 {[%emt 0:00:30]} 2. c3 {[%emt 0:00:30]} Nf6 {[%emt 0:00:00]} 3. e5 {[%emt 0:00:00]} Nd5 {[%emt 0:00:00]} 4. d4 {[%emt 0:00:00]} cxd4 {[%emt 0:00:00]} 5. cxd4 {[%emt 0:00:00]} e6 {[%emt 0:00:00]} 6. Nf3 {[%emt 0:03:00]} b6 {[%emt 0:00:30]} 7. Bd3 {[%emt 0:00:30]} Bb4+ {[%emt 0:00:30]} 8. Bd2 {[%emt 0:01:30]} Bxd2+ {[%emt 0:00:30]} 9. Nbxd2 {[%emt 0:00:30]} Nf4 {[%emt 0:01:30]} 10. Be4 {[%emt 0:00:30]} Ba6 {[%emt 0:00:30]} 11. Nc4 {[%emt 0:01:30]} Bxc4 {[%emt 0:11:30]} 12. Bxa8 {[%emt 0:01:30]} Nc6 {[%emt 0:04:30]} 13. Bxc6 {[%emt 0:09:30]} dxc6 {[%emt 0:00:30]} 14. Rg1 {[%emt 0:18:30]} Qd5 {[%emt 0:15:30]} 15. Qd2 {[%emt 0:07:30]} Qe4+ {[%emt 0:06:30]} 16. Kd1 {[%emt 0:08:30]} Be2+ {[%emt 0:04:30]} 17. Kc1 {[%emt 0:00:00]} Nd3+ {[%emt 0:14:30]} 18. Kc2 {[%emt 0:00:00]} Nb4+ {[%emt 0:12:30]} 19. Kc3 {[%emt 0:07:30]} Nd5+ {[%emt 0:01:30]} 20. Kb3 {[%emt 0:00:00]} b5 {[%emt 0:07:17]} 21. Rae1 {[%emt 0:05:00]} Bc4+ {[%emt 0:00:09]} 22. Ka3 {[%emt 0:00:00]} b4+ {[%emt 0:00:41]} 23. Ka4 {[%emt 0:01:00]} Qg6 {[%emt 0:02:03]} 24. g4 {[%emt 0:09:30]} a5 {[%emt 0:06:37]} 25. a3 {[%emt 0:05:19]} Nb6+ {[%emt 0:00:22]} 26. Kxa5 {[%emt 0:00:14]} Nd5 {[%emt 0:00:02]} 27. Qc1 {[%emt 0:07:37]} Kd7 {[%emt 0:00:31]} 28. Qxc4 {[%emt 0:00:15]} Ra8+ {[%emt 0:00:07]} 29. Qa6 {[%emt 0:00:04]} Qd3 {[%emt 0:00:09]} 0-1

[Event "IM Marmaris Karia IX 2019"]
[Site "Marmaris"]
[Date "2019.08.24"]
[Round "4.3"]
[White "Benidze, Davit"]
[Black "Kizilkus, Akin"]
[Result "1-0"]
[ECO "A45"]
[WhiteElo "2440"]
[BlackElo "2135"]
[Annotator "NA"]
[PlyCount "97"]
[EventDate "2019.08.24"]
[EventType "schev"]
[EventCountry "TUR"]
[SourceTitle "playchess.com"]
[Source "ChessBase"]
[SourceQuality "1"]
[TimeControl "5400+30"]

1. d4 {[%emt 0:00:30]} Nf6 {[%emt 0:00:30]} 2. Nc3 {[%emt 0:00:00]} d5 {[%emt 0:00:00]} 3. Bf4 {[%emt 0:00:00]} g6 {[%emt 0:00:00]} 4. Qd2 {[%emt 0:00:30]} Bg7 {[%emt 0:00:30]} 5. O-O-O {[%emt 0:02:30]} O-O {[%emt 0:01:30]} 6. Bh6 {[%emt 0:00:30]} c5 {[%emt 0:00:30]} 7. Bxg7 {[%emt 0:00:30]} Kxg7 {[%emt 0:00:30]} 8. dxc5 {[%emt 0:00:00]} Qa5 {[%emt 0:00:30]} 9. Nf3 $15 {[%emt 0:04:00]} Qxc5 {[%emt 0:07:30]} 10. h4 {[%emt 0:10:30]} h5 {[%emt 0:00:30]} 11. Qg5 {[%emt 0:03:30]} Nc6 {[%emt 0:16:30]} 12. e4 {[%emt 0:10:30]} Ng4 {[%emt 0:20:30]} 13. exd5 {[%emt 0:34:30]} Nxf2 {[%emt 0:06:30]} 14. dxc6 {[%emt 0:00:00]} Qxg5+ {[%emt 0:00:30]} 15. Nxg5 {[%emt 0:00:00]} Nxh1 {[%emt 0:05:30]} 16. cxb7 {[%emt 0:00:00]} Bxb7 {[%emt 0:00:00]} 17. Rd7 {[%emt 0:00:00]} Bc6 {[%emt 0:01:00]} 18. Rc7 {[%emt 0:00:30]} Ng3 {[%emt 0:07:30]} 19. Bd3 {[%emt 0:00:00]} Bxg2 {[%emt 0:01:30]} 20. Rxe7 {[%emt 0:00:00]} Rae8 {[%emt 0:02:30]} 21. Rxa7 {[%emt 0:00:30]} Bf1 {[%emt 0:02:30]} 22. Bxf1 {[%emt 0:00:30]} Nxf1 {[%emt 0:00:00]} 23. Nce4 {[%emt 0:01:30]} Ra8 {[%emt 0:02:00]} 24. Rd7 {[%emt 0:00:00]} Rxa2 {[%emt 0:01:30]} 25. Kb1 {[%emt 0:00:00]} Ra4 {[%emt 0:04:10]} 26. b3 {[%emt 0:03:30]} Rb4 {[%emt 0:00:50]} 27. Ne6+ {[%emt 0:00:00]} Kh8 {[%emt 0:01:13]} 28. Nxf8 {[%emt 0:01:00]} Rxe4 {[%emt 0:00:06]} 29. Rxf7 {[%emt 0:00:00]} Re1+ {[%emt 0:01:17]} 30. Kb2 {[%emt 0:03:00]} Kg8 {[%emt 0:00:47]} 31. Rf4 {[%emt 0:01:30]} g5 {[%emt 0:01:22]} 32. hxg5 {[%emt 0:00:30]} h4 {[%emt 0:00:05]} 33. Rxh4 {[%emt 0:04:30]} Kxf8 {[%emt 0:00:30]} 34. Rh1 {[%emt 0:00:30]} Kg7 {[%emt 0:00:31]} 35. b4 {[%emt 0:00:00]} Kg6 {[%emt 0:01:01]} 36. Rg1 {[%emt 0:02:00]} Re4 {[%emt 0:00:36]} 37. Rxf1 {[%emt 0:00:30]} Rxb4+ {[%emt 0:00:06]} 38. Ka3 {[%emt 0:06:31]} Rc4 {[%emt 0:01:07]} 39. Kb3 {[%emt 0:00:03]} Rc8 {[%emt 0:00:05]} 40. Rg1 {[%emt 0:00:06]} Rb8+ {[%emt 0:00:29]} 41. Kc3 {[%emt 0:00:34]} Rc8+ {[%emt 0:00:09]} 42. Kd3 {[%emt 0:00:04]} Rd8+ {[%emt 0:00:06]} 43. Ke4 {[%emt 0:00:05]} Re8+ {[%emt 0:00:13]} 44. Kd5 {[%emt 0:00:13]} Rd8+ {[%emt 0:00:04]} 45. Ke5 {[%emt 0:00:07]} Rc8 {[%emt 0:00:16]} 46. Rc1 {[%emt 0:01:20]} Rc3 {[%emt 0:00:25]} 47. Kd4 {[%emt 0:00:07]} Rc8 {[%emt 0:00:05]} 48. c4 {[%emt 0:00:01]} Kxg5 {[%emt 0:00:18]} 49. Ke4 {[%emt 0:00:35]} 1-0

[Event "IM Marmaris Karia IX 2019"]
[Site "Marmaris"]
[Date "2019.08.24"]
[Round "4.4"]
[White "Annageldyev, Orazly"]
[Black "Oney, Feridun"]
[Result "1-0"]
[ECO "A35"]
[WhiteElo "2342"]
[BlackElo "2054"]
[Annotator "NA"]
[PlyCount "73"]
[EventDate "2019.08.24"]
[EventType "schev"]
[EventCountry "TUR"]
[SourceTitle "playchess.com"]
[Source "ChessBase"]
[SourceQuality "1"]
[TimeControl "5400+30"]

1. e4 {[%emt 0:00:30]} c5 {[%emt 0:00:30]} 2. Nf3 {[%emt 0:00:30]} Nc6 {[%emt 0:00:30]} 3. c3 {[%emt 0:00:30]} d6 {[%emt 0:04:30]} 4. d4 {[%emt 0:00:00]} Nf6 {[%emt 0:00:30]} 5. d5 {[%emt 0:04:00]} Nb8 {[%emt 0:01:30]} 6. h3 {[%emt 0:04:30]} g6 {[%emt 0:02:30]} 7. Bd3 {[%emt 0:01:30]} Bg7 {[%emt 0:00:30]} 8. c4 {[%emt 0:00:30]} O-O {[%emt 0:00:30]} 9. Nc3 {[%emt 0:00:00]} e5 {[%emt 0:03:30]} 10. g4 {[%emt 0:04:00]} a6 {[%emt 0:06:30]} 11. a4 {[%emt 0:00:30]} b6 {[%emt 0:03:30]} 12. Bg5 {[%emt 0:00:30]} h6 {[%emt 0:06:30]} 13. Be3 {[%emt 0:00:30]} Kh8 {[%emt 0:01:30]} 14. Qd2 {[%emt 0:22:30]} Ng8 {[%emt 0:00:30]} 15. g5 {[%emt 0:04:30]} Kh7 {[%emt 0:14:30]} 16. O-O-O {[%emt 0:03:30]} h5 {[%emt 0:04:30]} 17. Rdg1 {[%emt 0:04:30]} b5 {[%emt 0:07:30]} 18. Nh4 {[%emt 0:03:30]} bxc4 {[%emt 0:03:30]} 19. Be2 {[%emt 0:01:30]} Qa5 {[%emt 0:01:30]} 20. Bxh5 {[%emt 0:01:30]} Ne7 {[%emt 0:01:30]} 21. Bd1 {[%emt 0:01:30]} Nd7 {[%emt 0:01:30]} 22. Nf3 {[%emt 0:01:30]} Rh8 {[%emt 0:02:30]} 23. h4 {[%emt 0:00:30]} Kg8 {[%emt 0:00:30]} 24. Nh2 {[%emt 0:01:30]} Nf8 {[%emt 0:02:30]} 25. Ng4 {[%emt 0:01:30]} Bxg4 {[%emt 0:00:30]} 26. Bxg4 {[%emt 0:00:00]} Rb8 {[%emt 0:00:30]} 27. Rh3 {[%emt 0:05:00]} Rh7 {[%emt 0:04:30]} 28. Rgh1 {[%emt 0:00:30]} Rh8 {[%emt 0:05:30]} 29. Qc2 {[%emt 0:05:30]} Qb4 {[%emt 0:01:24]} 30. Bd2 {[%emt 0:02:30]} Qb3 {[%emt 0:04:06]} 31. Nb1 {[%emt 0:01:30]} Qb7 {[%emt 0:03:21]} 32. Na3 {[%emt 0:00:30]} c3 {[%emt 0:00:28]} 33. Bxc3 {[%emt 0:01:30]} Nxd5 {[%emt 0:02:19]} 34. exd5 {[%emt 0:00:30]} Qxd5 {[%emt 0:00:03]} 35. Rd1 {[%emt 0:02:30]} Qg2 {[%emt 0:02:30]} 36. f3 {[%emt 0:00:30]} Qxc2+ {[%emt 0:00:14]} 37. Kxc2 {[%emt 0:00:30]} 1-0